bitfinex/quotes_ETHUSD_20260202
["timestamp","ask_amount","ask_price","bid_price","bid_amount"]
[1770050408267,12.9352601,2374.2,2371.8,0.21934679]
[1770050408268,12.03239411,2373.4,2371.8,0.21934679]
[1770050408494,2.0,2373.9,2371.8,0.21934679]
[1770050408495,12.03239411,2373.2,2371.8,4.2161597]
[1770050408699,0.883,2373.3,2371.3,1.05427402]
[1770050408700,0.00131796,2371.6,2371.3,1.05427402]
[1770050408887,0.00263591,2371.5,2371.4,1.70153346]
[1770050409086,0.00263591,2371.5,2370.9,6.47831244]
[1770050409087,12.04394077,2372.2,2370.8,1.98136473]
[1770050409305,12.04394077,2372.2,2370.7,4.21780758]
[1770050409306,0.00229419,2370.9,2370.7,4.21780758]
[1770050409509,1.05369636,2372.6,2370.8,13.22024165]
[1770050409892,1.05366137,2372.7,2371.0,11.74396452]
[1770050410098,1.05366137,2372.7,2370.9,0.883]
[1770050410099,12.91539411,2372.6,2370.9,0.883]
[1770050410294,0.883,2372.5,2371.0,0.23592771]
[1770050410697,12.91539411,2372.5,2371.0,0.23592771]
[1770050411097,1.05378519,2372.4,2371.1,1.05436295]
[1770050411303,12.03239411,2372.3,2371.1,1.05436295]
[1770050411791,12.03239411,2372.3,2371.0,1.29030586]
[1770050411994,13.85082612,2372.3,2371.1,0.5508078]
[1770050412199,12.03239411,2372.3,2371.1,0.5508078]
[1770050412886,1.93678519,2372.4,2371.1,0.5508078]
[1770050413083,1.93678519,2372.4,2371.2,1.05431848]
[1770050413692,13.9691793,2372.4,2371.1,0.5508078]
[1770050413897,12.03239411,2372.2,2371.0,1.29032545]
[1770050414318,12.03239411,2372.2,2371.0,0.23592771]
[1770050414618,12.03239411,2372.2,2371.0,1.29031308]
[1770050414920,12.03239411,2372.2,2370.9,1.05442285]
[1770050415105,12.03239411,2372.2,2370.9,1.05441451]
[1770050415305,13.08631257,2372.1,2370.8,4.21785217]
[1770050415602,13.08631257,2372.1,2370.8,1.05449637]
[1770050416215,13.08631257,2372.1,2370.7,1.93751329]
[1770050416415,13.76259275,2372.0,2370.8,0.61557878]
[1770050416789,1.05391846,2372.1,2370.8,0.61557878]
[1770050416989,0.883,2372.0,2370.8,0.61557878]
[1770050417625,4.21567387,2372.2,2370.9,1.05445189]
[1770050417796,12.03239411,2372.8,2371.0,11.74396452]
[1770050418118,0.883,2372.8,2371.4,0.02108726]
[1770050418417,0.883,2373.0,2371.5,12.62696452]
[1770050418903,12.91539411,2373.0,2371.5,0.883]
[1770050419105,1.05345334,2373.2,2371.9,0.02108726]
[1770050419508,4.21366782,2373.3,2372.0,1.0539629]
[1770050419712,4.21366782,2373.3,2372.1,0.52909018]
[1770050419927,1.05338558,2373.3,2372.1,0.52909018]
[1770050420592,12.95870013,2373.3,2372.1,0.52909018]
[1770050421223,1.05338558,2373.3,2372.1,0.52909018]
[1770050421699,4.21298894,2373.7,2372.2,1.05387404]
[1770050421898,4.21298894,2373.7,2372.3,0.57984604]
[1770050421899,6.43982332,2373.7,2372.3,0.57984604]
[1770050422527,18.34513787,2373.7,2372.3,0.57984604]
[1770050422924,1.05313941,2373.9,2372.4,0.02108726]
[1770050423112,1.05305797,2374.1,2372.7,12.14636705]
[1770050423424,1.05305797,2374.1,2372.7,11.68904157]
[1770050423726,12.95837252,2374.1,2372.4,1.05378519]
[1770050423916,12.95837252,2374.1,2372.4,13.2212395]
[1770050424120,12.95837252,2374.1,2372.5,1.89002263]
[1770050424626,12.78931455,2374.0,2372.4,1.05378519]
[1770050425430,11.90531455,2373.8,2372.4,1.05378519]
[1770050425616,11.90531455,2373.6,2372.4,1.05378519]
[1770050425827,11.90531455,2373.6,2372.3,2.51764615]
[1770050426429,1.05320807,2373.7,2372.3,2.51764615]
[1770050426728,1.05320807,2373.7,2372.4,0.6754124]
[1770050426928,1.93620807,2373.7,2372.4,0.6754124]
[1770050427626,1.93620807,2373.7,2372.5,1.05374077]
[1770050427826,1.93621519,2373.7,2372.5,1.05374077]
[1770050429321,13.84152974,2373.7,2372.4,0.6754124]
[1770050429624,1.05334119,2373.4,2372.3,1.93780507]
[1770050429796,1.05334119,2373.4,2372.3,0.884]
[1770050430000,12.95864434,2373.5,2372.3,1.9378282]
[1770050430219,2.0946858,2373.4,2372.4,0.61531467]
[1770050431194,12.95864434,2373.5,2372.4,0.61531467]
[1770050431825,12.95864434,2373.5,2372.5,1.05374077]
[1770050432027,1.05332979,2373.5,2372.5,1.05374077]
[1770050432516,4.21195336,2374.2,2372.5,13.22119508]
[1770050432718,11.90531455,2374.8,2373.1,12.16745431]
[1770050433037,1.05374563,2375.0,2373.4,12.16745431]
[1770050433252,1.05373629,2375.0,2373.4,12.16745431]
[1770050433602,0.0011,2375.0,2373.7,0.02108726]
[1770050433804,0.0011,2375.0,2373.8,1.0531637]
[1770050434038,0.0011,2375.0,2373.9,0.52869058]
[1770050434329,11.90641455,2375.0,2373.9,0.52869058]
[1770050434757,0.46406694,2374.9,2373.9,0.52869058]
[1770050434928,11.90641455,2375.0,2373.9,0.52869058]
[1770050435457,12.78941455,2375.0,2373.2,0.883]
[1770050435663,11.90531455,2374.9,2373.7,1.05320774]
[1770050435831,11.90531455,2374.9,2373.4,1.05334119]
[1770050435832,1.05272022,2374.8,2373.4,1.05334119]
[1770050436361,1.93676598,2375.0,2373.4,13.19970824]
[1770050436529,1.93676598,2375.0,2373.5,1.74336278]
[1770050436853,11.90531455,2374.8,2373.5,1.74336278]
[1770050437060,11.90531455,2374.8,2373.4,1.05334119]
[1770050437473,11.90531455,2374.8,2373.3,1.05335772]
[1770050437649,1.05376598,2375.0,2373.3,1.05335772]
[1770050437832,13.84208053,2375.0,2373.3,1.05335772]
[1770050438829,1.93676598,2375.0,2373.5,12.14636705]
[1770050439048,1.93676598,2375.0,2373.6,1.21463671]
[1770050439247,0.0011,2375.0,2373.8,0.02108726]
[1770050439849,9.12084079,2377.2,2373.8,0.02108726]
[1770050439850,1.05227056,2375.9,2374.4,0.02108726]
[1770050440050,1.05343231,2375.7,2374.5,0.883]
[1770050440249,12.95874686,2375.7,2374.5,0.883]
[1770050440451,1.05343231,2375.7,2374.5,0.883]
[1770050440771,0.0011,2375.7,2374.5,0.883]
[1770050440962,1.05342406,2375.7,2374.5,0.883]
[1770050441534,13.48500958,2375.7,2374.5,0.883]
[1770050441739,0.0011,2375.7,2374.7,1.05276455]
[1770050441940,11.90641455,2375.7,2374.7,1.05276455]
[1770050443775,12.95874311,2375.7,2374.6,4.21105823]
[1770050443943,1.05342753,2375.7,2374.6,4.21105823]
[1770050444144,0.0011,2375.7,2374.6,4.21105823]
[1770050444344,0.0011,2375.7,2374.7,0.61468671]
[1770050445251,1.05342758,2375.7,2374.7,0.61468671]
[1770050445464,0.0011,2375.7,2374.7,0.61468671]
[1770050445792,0.0011,2375.7,2374.8,1.05272022]
[1770050447573,0.0011,2375.5,2374.8,1.05272022]
[1770050447776,0.0011,2375.5,2374.9,0.58782878]
[1770050447969,0.0011,2375.5,2375.0,1.05263157]
[1770050448643,0.0011,2375.5,2374.9,0.58782878]
[1770050448842,0.0011,2375.5,2374.6,1.05277083]
[1770050449048,12.29230007,2375.5,2374.6,1.05277083]
[1770050449351,12.29230007,2375.5,2374.2,1.05296631]
[1770050449755,12.29230007,2375.5,2374.1,1.05300571]
[1770050449950,12.67604138,2375.3,2373.9,1.05311933]
[1770050450175,1.37284957,2375.2,2374.0,0.61485967]
[1770050450790,14.04889095,2375.2,2374.0,0.61485967]
[1770050450960,14.04889095,2375.2,2373.9,1.05311933]
[1770050451169,14.04889095,2375.2,2373.8,1.93612933]
[1770050452256,14.04889095,2375.2,2373.7,1.05318691]
[1770050452257,12.67604138,2375.0,2373.7,1.05318691]
[1770050452457,13.55904138,2374.9,2373.8,1.05315044]
[1770050452662,1.35590414,2374.8,2373.8,1.57973685]
[1770050453592,14.03194552,2374.8,2373.8,0.52658641]
[1770050453781,14.03194552,2374.8,2373.8,1.57975006]
[1770050454292,1.05276455,2374.7,2373.8,1.05316365]
[1770050454959,1.05276455,2374.7,2373.6,4.21296386]
[1770050455166,1.05276455,2374.7,2373.7,1.05318143]
[1770050455502,1.05276455,2374.7,2373.7,1.05318088]
[1770050455660,1.05276455,2374.7,2373.2,12.87243169]
[1770050455661,13.72880593,2374.7,2373.2,0.883]
[1770050455864,12.67604138,2374.5,2373.2,0.883]
[1770050456088,12.67604138,2374.5,2372.8,11.98943169]
[1770050456089,12.67604138,2374.5,2372.9,1.05452997]
[1770050456259,12.67604138,2374.3,2372.9,0.001]
[1770050456464,12.67604138,2374.1,2372.9,0.001]
[1770050457484,13.72893895,2374.4,2373.0,0.02108726]
[1770050457692,13.72893895,2374.4,2373.0,0.5289903]
[1770050457693,0.02108726,2373.6,2373.0,0.5289903]
[1770050458086,0.02108726,2374.1,2373.0,0.5289903]
[1770050458368,0.02108726,2373.1,2373.0,1.58248653]
[1770050458581,0.00401483,2373.4,2373.0,1.58248653]
[1770050458780,0.00401483,2373.4,2373.1,0.57976026]
[1770050458996,0.00401483,2373.4,2373.0,1.05351208]
[1770050459304,0.883,2374.2,2373.0,1.05351208]
[1770050459669,1.35590414,2374.8,2373.0,13.04294377]
[1770050459901,12.67604138,2374.9,2373.0,13.04294377]
[1770050460077,1.05265387,2375.0,2373.0,13.04294377]
[1770050460398,0.02108726,2374.5,2373.2,13.04286165]
[1770050460792,0.02108726,2373.9,2373.1,3.70080777]
[1770050460978,0.02108726,2374.2,2373.1,1.05447295]
[1770050461180,13.58012864,2374.5,2373.1,1.05447295]
[1770050461400,13.72869525,2375.0,2373.1,13.04390464]
[1770050461570,0.883,2374.9,2373.1,13.04390464]
[1770050461777,13.55904138,2374.9,2373.1,13.04390464]
[1770050461984,12.69712864,2374.5,2373.2,1.72578021]
[1770050462307,1.05289757,2374.4,2373.1,0.001]
[1770050463507,13.72893895,2374.4,2373.1,0.001]
[1770050465011,0.883,2374.3,2373.1,0.001]
[1770050465782,12.67604138,2374.2,2373.1,0.001]
[1770050466185,21.88134035,2374.2,2373.1,0.001]
[1770050466387,12.67604138,2373.9,2372.6,0.001]
[1770050466617,12.67604138,2373.7,2372.6,1.05468124]
[1770050466779,0.883,2373.6,2372.6,0.001]
[1770050466986,13.55904138,2373.6,2372.6,0.001]
[1770050468497,13.72933819,2373.5,2372.6,0.001]
[1770050468705,13.72933819,2373.5,2371.8,1.05405177]
[1770050468706,12.67604138,2373.3,2371.8,1.05405177]
[1770050470326,12.67604138,2373.1,2371.7,1.05406762]
[1770050470628,12.67604138,2373.1,2371.6,1.0541254]
[1770050470629,12.67604138,2372.9,2371.6,1.0541254]
[1770050471095,12.67604138,2372.9,2371.5,1.05415358]
[1770050471293,12.67604138,2372.9,2371.6,1.05411385]
[1770050471495,1.35590414,2372.8,2371.7,0.52708477]
[1770050471716,1.05342996,2373.2,2371.7,0.52708477]
[1770050472022,13.72947134,2373.2,2371.7,0.52708477]
[1770050472546,13.72947134,2373.2,2371.8,1.05405177]
[1770050472741,13.72947134,2373.2,2371.7,4.74343171]
[1770050472742,12.67604138,2373.0,2371.7,0.52708477]
[1770050473244,12.67604138,2373.0,2371.7,1.58117781]
[1770050474452,12.67604138,2373.0,2371.9,0.001]
[1770050474739,1.05356315,2372.9,2371.9,0.001]
[1770050474892,0.883,2372.8,2371.9,0.001]
[1770050475094,2.76568571,2372.8,2371.9,0.001]
[1770050475406,0.883,2372.8,2371.9,0.001]
[1770050475607,1.05347435,2373.1,2371.9,0.001]
[1770050476017,12.67604138,2373.0,2371.9,0.001]
[1770050476727,1.05356315,2372.9,2371.9,0.001]
[1770050476930,1.05342996,2373.2,2371.9,0.001]
[1770050477225,14.76585831,2373.2,2371.9,0.001]
[1770050477732,1.05342996,2373.2,2371.9,0.001]
[1770050478928,4.21371987,2373.3,2371.9,1.05500733]
[1770050480032,16.72451233,2373.3,2371.9,1.05500733]
[1770050480620,12.51079246,2373.2,2371.9,1.05500733]
[1770050480928,1.05347435,2373.1,2371.9,1.05500733]
[1770050481129,1.05347435,2373.1,2372.0,0.61540367]
[1770050482142,12.51079246,2373.0,2372.0,0.61540367]
[1770050482940,13.56435561,2372.9,2372.0,1.66933594]
[1770050484107,1.05350143,2373.1,2372.0,1.66933594]
[1770050484930,4.21377913,2373.2,2372.0,1.66933594]
[1770050485230,4.21377913,2373.2,2372.1,0.58862497]
[1770050485231,6.5012239,2373.2,2372.1,0.58862497]
[1770050485608,4.2129754,2373.7,2372.1,13.09195317]
[1770050485609,13.5640449,2373.7,2372.1,13.09195317]
[1770050485921,4.21307977,2373.6,2372.1,13.07086591]
[1770050486850,2.27643403,2374.1,2372.1,13.07086591]
[1770050486851,3.32949767,2374.1,2372.6,12.5033282]
[1770050487134,12.51079246,2374.0,2372.8,1.05360755]
[1770050487434,3.32949767,2374.1,2372.7,1.93764997]
[1770050487435,14.09482147,2373.9,2372.7,1.93764997]
[1770050487601,14.09482147,2373.9,2372.7,1.93765142]
[1770050487602,12.51079246,2373.9,2372.7,1.93765142]
[1770050488243,12.51079246,2373.7,2372.5,1.05373791]
[1770050488426,12.51079246,2373.5,2372.3,1.05380564]
[1770050488635,12.51079246,2373.5,2372.1,2.52750819]
[1770050488819,12.51079246,2373.3,2372.2,0.73587329]
[1770050489019,13.56422242,2373.2,2372.1,0.001]
[1770050490305,13.56422242,2373.2,2372.1,1.05490104]
[1770050490708,1.05342996,2373.2,2372.1,1.05490104]
[1770050490906,1.05329681,2373.5,2372.1,0.001]
[1770050491335,0.90544566,2373.4,2372.1,0.001]
[1770050491526,1.44695349,2373.3,2372.1,0.001]
[1770050492748,13.95774595,2373.3,2372.1,0.001]
[1770050493237,13.56422242,2373.2,2372.1,0.001]
[1770050493749,1.05342996,2373.2,2372.1,0.001]
[1770050494340,13.56422242,2373.2,2372.1,0.001]
[1770050494539,1.77777653,2373.1,2372.1,0.001]
[1770050494744,13.56422242,2373.2,2372.1,0.001]
[1770050494745,1.05342996,2373.2,2372.1,0.001]
[1770050495109,4.21322081,2373.5,2372.1,0.001]
[1770050495311,0.9079138,2373.4,2372.1,0.001]
[1770050495547,0.9079138,2373.3,2372.1,0.001]
[1770050495718,17.85119018,2373.5,2372.1,0.001]
[1770050496038,2.7990324,2373.4,2372.1,0.001]
[1770050496242,0.9085837,2373.3,2372.1,12.48324094]
[1770050496439,16.72401327,2373.5,2372.1,12.48324094]
[1770050496645,0.90869236,2373.4,2372.2,0.884]
[1770050496841,16.72401327,2373.5,2372.2,0.884]
[1770050497026,0.90865968,2373.4,2372.2,0.884]
[1770050497227,1.05338558,2373.3,2372.4,1.05378519]
[1770050497619,1.05338558,2373.3,2372.3,2.39052882]
[1770050497821,1.05338558,2373.3,2372.3,1.05380473]
[1770050498536,12.51079246,2373.5,2372.3,1.05380473]
[1770050498730,0.90869779,2373.4,2372.3,13.53604567]
[1770050498924,1.05332619,2373.5,2372.3,13.53604567]
[1770050499125,0.90865173,2373.4,2372.3,13.53604567]
[1770050499451,1.05323526,2373.7,2372.4,14.34579403]
[1770050499619,1.05427781,2373.8,2372.4,14.34579403]
[1770050500148,0.0011,2373.8,2372.4,14.34579403]
[1770050500352,0.0011,2373.8,2372.7,12.48224094]
[1770050501461,0.0011,2373.8,2372.8,1.05360755]
[1770050501656,0.0011,2373.8,2372.9,2.65802787]
[1770050501823,0.0011,2373.8,2372.9,15.14026881]
[1770050501824,0.0011,2373.1,2372.9,15.14026881]
[1770050502153,0.0011,2373.8,2372.9,2.65802787]
[1770050502358,0.0011,2373.8,2372.9,0.883]
[1770050503457,0.0011,2373.8,2373.0,1.05351875]
[1770050505459,0.0011,2373.8,2372.9,1.93652798]
[1770050506661,0.0011,2373.8,2372.9,1.93656026]
[1770050510386,12.41654681,2373.8,2372.9,0.883]
[1770050510589,13.65710149,2373.7,2372.9,0.883]
[1770050511385,13.65710149,2373.7,2372.9,1.93654242]
[1770050511386,1.24165468,2373.7,2372.9,1.93654242]
[1770050511576,0.0011,2373.8,2372.9,1.93654242]
[1770050511774,1.05325244,2373.6,2372.5,4.21495071]
[1770050514083,14.00574943,2373.6,2372.4,1.86355309]
[1770050514390,12.41544681,2373.3,2372.3,1.05482641]
[1770050514554,12.95249699,2373.3,2372.3,0.001]
[1770050514756,12.41544681,2373.0,2372.3,0.001]
[1770050514951,0.02108726,2372.8,2372.3,0.001]
[1770050515196,0.02108726,2372.8,2372.1,0.001]
[1770050515197,12.43653407,2372.8,2372.1,0.001]
[1770050515388,1.83440861,2372.7,2372.1,0.001]
[1770050515554,1.29735843,2372.7,2372.1,0.001]
[1770050516189,1.0536265,2372.8,2372.1,0.001]
[1770050516797,0.883,2373.3,2372.1,0.001]
[1770050516798,1.05345412,2373.2,2372.1,0.001]
[1770050517373,1.05345412,2373.2,2372.1,12.04891575]
[1770050517574,1.05340797,2373.3,2372.2,12.93091575]
[1770050517809,1.05444785,2373.4,2372.3,13.34110733]
[1770050518109,0.0011,2373.4,2372.4,1.05378519]
[1770050518281,12.95359699,2373.4,2372.4,1.05378519]
[1770050518481,0.53705018,2373.3,2372.4,1.05378519]
[1770050519010,12.41654681,2373.4,2372.4,1.05378519]
[1770050519215,0.0011,2373.4,2372.5,0.52691036]
[1770050520301,0.53815018,2373.4,2372.5,1.58064898]
[1770050520494,0.0011,2373.4,2372.5,1.05373862]
[1770050521700,0.0011,2373.4,2372.4,1.05374968]
[1770050522319,12.43653407,2372.7,2372.1,0.001]
[1770050523105,12.41544681,2372.7,2372.1,0.001]
[1770050523308,0.883,2372.9,2372.1,0.001]
[1770050523479,13.29844681,2372.9,2372.1,0.001]
[1770050523680,14.65286588,2372.8,2372.1,0.001]
[1770050523989,13.74529149,2372.8,2372.1,0.001]
[1770050524186,1.32984468,2372.8,2372.1,0.001]
[1770050524396,14.37641974,2372.7,2372.1,0.001]
[1770050524578,13.46909876,2372.7,2372.1,0.001]
[1770050525676,1.12717691,2373.2,2372.1,0.001]
[1770050525924,1.05345739,2373.2,2372.1,0.001]
[1770050526226,12.41544681,2373.0,2372.1,0.001]
[1770050526432,1.05356315,2372.9,2372.1,0.001]
[1770050527078,12.41654681,2373.4,2372.1,0.001]
[1770050527079,1.05342996,2373.2,2372.1,0.001]
[1770050527299,1.05342996,2373.2,2372.1,12.04891575]
[1770050528022,0.58880018,2373.1,2372.1,12.04891575]
[1770050528188,0.58880018,2373.1,2372.1,0.001]
[1770050528189,13.00424699,2373.1,2372.1,0.001]
[1770050528393,1.05351875,2373.0,2372.1,0.001]
[1770050528598,2.45928645,2373.0,2372.3,0.001]
[1770050530417,1.05350129,2373.1,2372.3,0.001]
[1770050531718,0.0011,2373.4,2372.4,12.06900301]
[1770050531918,1.05445452,2373.4,2372.4,12.06900301]
[1770050532119,0.58880018,2373.3,2372.5,1.2070003]
[1770050532341,1.05342996,2373.2,2372.3,0.001]
[1770050532697,1.64223014,2373.2,2372.3,0.001]
[1770050532911,1.05446957,2373.4,2372.3,0.001]
[1770050533110,1.05446957,2373.4,2372.3,12.07000301]
[1770050533111,0.0011,2373.4,2372.3,12.07000301]
[1770050533407,1.13344735,2374.1,2372.3,12.07000301]
[1770050533408,1.5112747,2374.9,2373.8,12.04791575]
[1770050533608,0.02108726,2374.5,2373.9,1.20479158]
[1770050533924,0.02108726,2374.5,2373.3,13.00508119]
[1770050533925,0.00131796,2373.7,2373.5,2.25956482]
[1770050534229,12.43653407,2374.5,2373.5,1.13006801]
[1770050534388,12.41544681,2374.5,2373.7,1.13006801]
[1770050534592,1.24154468,2374.5,2373.7,1.92037677]
[1770050534840,13.4681843,2374.8,2373.7,1.92037677]
[1770050535120,13.4681843,2374.8,2373.8,1.13006801]
[1770050535422,12.41544681,2374.8,2373.8,1.13006801]
[1770050535720,0.884,2374.9,2373.9,1.13006801]
[1770050535888,0.884,2374.9,2374.0,1.13006801]
[1770050536087,0.884,2374.9,2373.9,1.13006801]
[1770050536503,0.884,2374.9,2374.0,1.05307497]
[1770050536687,0.884,2374.9,2374.1,0.63954429]
[1770050537087,0.0011,2375.3,2374.1,0.66063155]
[1770050537324,0.0011,2375.3,2374.3,1.13006801]
[1770050537709,0.0011,2375.3,2374.4,1.15115527]
[1770050537912,0.0011,2375.7,2374.8,1.13006801]
[1770050538100,0.0011,2375.7,2374.7,1.13006801]
[1770050538503,0.0011,2375.7,2374.8,1.05272022]
[1770050538699,0.0011,2375.7,2374.9,0.63936691]
[1770050539130,0.0011,2376.6,2374.9,0.66045417]
[1770050539326,13.46856373,2376.4,2374.9,1.76943492]
[1770050539830,12.41654681,2376.4,2374.9,1.79052218]
[1770050540031,13.46856554,2376.4,2374.9,1.79052218]
[1770050540237,12.80904824,2376.2,2375.0,0.28432424]
[1770050540391,12.80904824,2376.2,2375.1,1.05258725]
[1770050541098,13.86115927,2376.2,2375.1,1.05258725]
[1770050541520,12.80904824,2376.2,2375.1,1.05258725]
[1770050541834,13.86115151,2376.2,2375.1,1.05258725]
[1770050542020,14.37192888,2376.1,2375.1,1.05258725]
[1770050542526,14.37192888,2376.1,2374.9,4.21034903]
[1770050542730,0.0011,2376.2,2374.9,4.21034903]
[1770050542901,0.0011,2376.2,2375.0,0.02108726]
[1770050544405,0.0011,2376.2,2375.1,1.05258725]
[1770050544926,0.0011,2376.2,2375.3,0.02108726]
[1770050545297,12.81014824,2376.2,2375.1,7.45258725]
[1770050545534,14.09127306,2376.2,2375.2,1.16629363]
[1770050546128,1.28222482,2376.2,2375.2,1.16629363]
[1770050546327,12.81014824,2376.2,2375.2,1.16629363]
[1770050546630,12.81014824,2376.2,2375.3,1.05249863]
[1770050549324,0.0011,2376.2,2375.3,1.07358589]
[1770050549537,0.0011,2376.2,2375.3,1.05249863]
[1770050550421,12.81014824,2376.2,2375.3,1.05249863]
[1770050550640,14.19527142,2376.1,2375.3,1.05249863]
[1770050551029,1.38622318,2376.1,2375.3,1.05249863]
[1770050551231,0.0011,2376.2,2375.3,1.05249863]
[1770050551431,13.86225523,2376.2,2375.3,1.05249863]
[1770050551636,12.81014824,2376.2,2375.3,1.05249863]
[1770050553773,12.80904824,2377.3,2375.9,0.02108726]
[1770050553921,12.80904824,2377.2,2376.0,0.02108726]
[1770050554263,0.0011,2376.2,2376.0,1.08942133]
[1770050554425,13.6494455,2377.2,2375.9,0.883]
[1770050554634,13.6494455,2377.2,2376.0,1.05218855]
[1770050554836,0.0011,2376.4,2376.0,1.05218855]
[1770050555264,0.0011,2376.4,2375.9,1.05220473]
[1770050556165,0.0011,2376.4,2375.4,5.09278688]
[1770050556166,12.81014824,2376.4,2375.4,0.883]
[1770050556376,12.81014824,2376.4,2375.6,1.05233222]
[1770050556377,14.97306306,2376.3,2375.6,1.05233222]
[1770050556738,16.02514161,2376.3,2375.0,4.21051886]
[1770050556939,12.80904824,2376.2,2375.0,4.21051886]
[1770050558735,13.86114942,2376.2,2375.0,4.21051886]
[1770050558936,12.80904824,2376.2,2375.0,4.21051886]
[1770050559259,12.80904824,2376.2,2375.1,0.61581504]
[1770050559965,2.16401482,2376.3,2375.1,0.61581504]
[1770050560153,2.16401482,2376.3,2375.1,10.7902393]
[1770050560154,0.883,2376.3,2375.1,10.7902393]
[1770050560363,0.883,2376.3,2375.2,1.10778398]
[1770050560539,0.883,2376.3,2375.1,9.68245532]
[1770050560540,13.69204824,2376.3,2375.1,1.72359902]
[1770050560870,13.69204824,2376.3,2375.2,1.05254294]
[1770050561033,1.4745185,2376.2,2375.3,0.69863137]
[1770050561232,14.28356674,2376.2,2375.2,2.16032692]
[1770050562738,15.33566916,2376.2,2375.2,2.16032692]
[1770050563038,15.33566964,2376.2,2375.2,2.16032692]
[1770050563274,14.28356674,2376.2,2375.4,1.10778398]
[1770050564376,15.33567242,2376.2,2375.5,1.10778398]
[1770050564552,14.85173868,2376.1,2375.5,1.10778398]
[1770050564870,14.85173868,2376.1,2375.5,1.05240569]
[1770050565241,14.85173868,2376.1,2375.5,2.16018967]
[1770050566279,14.85173868,2376.1,2375.6,1.10778398]
[1770050567091,2.04269044,2376.1,2375.6,2.16012291]
[1770050567249,14.74414147,2376.3,2375.7,1.10778398]
[1770050567773,14.74414147,2376.3,2375.6,1.10778398]
[1770050567982,14.74414147,2376.3,2375.7,1.10778398]
[1770050568383,13.69204824,2376.3,2375.7,1.10778398]
[1770050568570,0.883,2376.3,2375.8,1.10778398]
[1770050568948,0.883,2376.3,2375.9,1.05223283]
[1770050569148,0.883,2376.3,2375.9,2.16001681]
[1770050569348,0.883,2376.3,2375.9,1.10778398]
[1770050570280,0.883,2376.3,2375.7,5.71603463]
[1770050570281,13.42171262,2376.3,2375.7,2.55903973]
[1770050570452,13.42171262,2376.3,2375.7,2.55904876]
[1770050570453,14.88509449,2376.3,2375.7,2.55904876]
[1770050570990,12.53871262,2376.2,2375.7,1.05229141]
[1770050571153,12.53871262,2376.2,2375.7,2.55904876]
[1770050572067,12.53871262,2376.2,2375.6,2.55909841]
[1770050572382,14.55335055,2376.2,2375.6,2.5590976]
[1770050572582,14.55335055,2376.2,2375.7,1.05231599]
[1770050573684,15.60547441,2376.2,2375.5,1.50675735]
[1770050573992,14.47357375,2377.0,2375.8,2.25956482]
[1770050574152,14.47357375,2377.0,2375.7,1.505967]
[1770050574153,12.53871262,2376.8,2375.7,1.505967]
[1770050574350,12.53871262,2376.8,2375.6,3.84832541]
[1770050574351,12.53871262,2376.5,2375.6,3.84832541]
[1770050574659,0.882,2376.4,2375.6,2.55832541]
[1770050574860,0.882,2376.4,2375.7,1.505967]
[1770050575084,0.882,2376.4,2375.9,1.05223283]
[1770050576270,0.882,2376.4,2375.7,1.505967]
[1770050576271,14.49382103,2376.4,2375.7,1.505967]
[1770050576484,14.49382103,2376.4,2375.7,2.55824662]
[1770050576786,14.49382103,2376.4,2375.7,1.05227962]
[1770050577395,14.49382103,2376.4,2375.6,1.505967]
[1770050577688,12.53871262,2376.0,2375.5,1.05240421]
[1770050577863,0.882,2375.9,2375.4,1.05342956]
[1770050578065,0.882,2375.9,2375.4,4.21078601]
[1770050578270,0.882,2375.9,2375.6,1.05236327]
[1770050578588,0.882,2375.9,2375.8,0.001]
[1770050578886,0.882,2375.9,2375.5,1.05240995]
[1770050579076,0.882,2375.9,2375.5,1.05340995]
[1770050579276,0.882,2375.9,2375.5,0.001]
[1770050579886,0.882,2375.9,2375.5,0.67802135]
[1770050580274,0.882,2375.9,2375.5,0.001]
[1770050580480,13.42071262,2375.9,2375.5,0.001]
[1770050580794,0.0011,2376.4,2375.7,1.505967]
[1770050581093,12.53871262,2376.7,2375.7,1.505967]
[1770050581094,0.0011,2377.4,2376.2,2.25956482]
[1770050581316,0.0011,2378.0,2376.9,1.50496899]
[1770050581599,0.0011,2378.0,2377.2,1.50496899]
[1770050581767,13.58953015,2379.1,2377.7,1.50496899]
[1770050581966,0.0011,2379.0,2378.0,1.50496899]
[1770050582287,13.42071262,2379.1,2377.9,2.25956482]
[1770050582288,0.0011,2379.1,2377.9,2.38696899]
[1770050582456,0.0011,2379.1,2378.1,1.50496899]
[1770050582660,0.0011,2379.1,2378.0,1.50496899]
[1770050582861,0.0011,2379.1,2378.1,0.2386969]
[1770050583082,0.0011,2379.1,2377.9,0.882]
[1770050583280,0.0011,2379.1,2378.0,1.05130361]
[1770050584484,12.53981262,2379.1,2378.0,1.05130361]
[1770050585269,1.0508617,2379.0,2377.5,1.05152471]
[1770050585816,12.53981262,2378.9,2377.3,0.37645338]
[1770050586099,12.53871262,2378.6,2377.4,1.05155282]
[1770050586271,12.53871262,2378.5,2376.8,4.2071897]
[1770050586465,13.42071262,2378.4,2377.3,1.05158123]
[1770050586664,13.42071262,2378.4,2377.2,4.20646952]
[1770050586665,13.42071262,2378.4,2377.2,1.05162863]
[1770050586892,0.51503088,2378.3,2377.3,1.05161304]
[1770050587098,12.53871262,2378.2,2377.3,1.5774502]
[1770050587276,1.0512594,2378.1,2377.3,0.52583716]
[1770050587601,1.0512594,2378.1,2377.3,1.57744404]
[1770050588106,12.53871262,2378.6,2377.3,1.57744404]
[1770050588310,0.0011,2378.4,2377.3,1.57744404]
[1770050588606,0.882,2378.5,2377.4,1.50064972]
[1770050588801,0.0011,2378.4,2377.4,1.50064972]
[1770050589482,0.0011,2378.4,2377.5,1.05152471]
[1770050590902,12.53981262,2378.4,2377.4,1.05154341]
[1770050591092,12.53981262,2378.4,2377.4,1.05156204]
[1770050591293,1.051171,2378.3,2377.4,1.05156204]
[1770050591468,12.53871262,2378.3,2377.4,1.05156204]
[1770050591672,0.0011,2378.2,2377.5,0.5783675]
[1770050591998,0.0011,2378.4,2377.6,0.001]
[1770050592297,12.53981262,2378.4,2377.6,0.001]
[1770050593105,0.0011,2378.4,2377.6,0.001]
[1770050593416,12.53981262,2378.4,2377.6,0.001]
[1770050593590,13.98600272,2378.3,2377.6,0.001]
[1770050593987,12.53981262,2378.2,2377.6,0.001]
[1770050595512,0.0011,2378.2,2377.6,0.001]
[1770050595882,0.8831,2378.2,2377.6,0.001]
[1770050596384,14.47303281,2378.2,2377.6,0.001]
[1770050596592,1.86778597,2378.1,2377.6,0.001]